fUST/lending_fUST_20250227
["ID","MTS","AMOUNT","RATE_DAILY","PERIOD"]
[354615853,1740595928248,-500.0,0.00057534,120]
[354615855,1740595928258,-841.31,0.00057534,120]
[354615857,1740595928267,-1149.59,0.00057534,120]
[354615859,1740595928277,-504.48,0.00057534,120]
[354615861,1740595928286,-610.98,0.00057534,120]
[354615863,1740595928296,-919.11,0.00057534,120]
[354615865,1740595928306,-1139.22,0.00057534,120]
[354615867,1740595928316,-1427.81,0.00057534,120]
[354615869,1740595928325,-3966.28,0.00057534,120]
[354615871,1740595928335,-1179.25,0.00057534,120]
[354615873,1740595928344,-643.49,0.00057534,120]
[354615875,1740595928354,-9738.58,0.00057534,120]
[354615877,1740595928363,-801.82,0.00057534,120]
[354615879,1740595928373,-911.86,0.00057534,120]
[354615881,1740595928384,-552.77,0.00057534,120]
[354615882,1740595928394,-500.05,0.00057534,120]
[354615884,1740595928403,-587.37,0.00057534,120]
[354615886,1740595928413,-11052.45,0.00057534,120]
[354615888,1740595928423,-517.75,0.00057534,120]
[354615890,1740595928433,-3684.76,0.00057534,120]
[354615892,1740595928443,-3499.84,0.00057534,120]
[354615894,1740595928452,-1015.05,0.00057534,120]
[354615896,1740595928462,-13581.8,0.00057534,120]
[354615898,1740595928472,-15292.47,0.00057534,120]
[354615900,1740595928481,-500.0,0.00057534,120]
[354615902,1740595928491,-1570.34,0.00057534,120]
[354615904,1740595928500,-1020.31,0.00057534,120]
[354615906,1740595928509,-690.39,0.00057534,120]
[354615908,1740595928518,-3105.4,0.00057534,120]
[354615910,1740595928527,-834.44,0.00057534,30]
[354615912,1740595928537,-2309.16,0.00057534,120]
[354615914,1740595928546,-10799.99,0.00057534,120]
[354615916,1740595928555,-850.01,0.00057534,120]
[354615918,1740595928565,-500.0,0.00057534,120]
[354615920,1740595928575,-4233.08,0.00057534,120]
[354615922,1740595928584,-4180.32,0.00057534,120]
[354615924,1740595928593,-2800.4,0.00057534,120]
[354615926,1740595928603,-2084.49,0.00057534,120]
[354615928,1740595928612,-2951.73,0.00057534,120]
[354615930,1740595928622,-2431.59,0.00057534,120]
[354615932,1740595928633,-583.3,0.00057534,120]
[354615934,1740595928642,-1918.79,0.00057534,120]
[354615936,1740595928652,-1679.17,0.00057534,120]
[354615938,1740595928661,-2627.04,0.00057534,120]
[354615940,1740595928671,-514.65,0.00057534,120]
[354615942,1740595928680,-1409.36,0.00057534,120]
[354615944,1740595928690,-785.21,0.00057534,120]
[354615964,1740595928857,-834.81,0.00057534,120]
[354615967,1740595928889,-3016.52,0.00057534,120]
[354615969,1740595928900,-2867.38,0.00057534,120]
[354615971,1740595928911,-684.79,0.00057534,120]
[354615973,1740595928922,-928.1,0.00057534,120]
[354615975,1740595928932,-511.43,0.00057534,120]
[354615977,1740595928942,-163172.77,0.00057534,7]
[354615979,1740595928952,-567.25,0.00057534,120]
[354615981,1740595928965,-4605.54,0.00057534,120]
[354615983,1740595928975,-884.36,0.00057534,120]
[354615985,1740595928985,-573.56,0.00057534,120]
[354615987,1740595928995,-1964.79,0.00057534,120]
[354615989,1740595929008,-29115.5,0.00057534,120]
[354615991,1740595929019,-644.01,0.00057534,120]
[354615993,1740595929029,-1853.52,0.00057534,120]
[354615995,1740595929039,-627.73,0.00057534,120]
[354615997,1740595929048,-1150.38,0.00057534,120]
[354615999,1740595929058,-500.0,0.00057534,120]
[354616001,1740595929068,-820.33,0.00057534,120]
[354616003,1740595929078,-1232.27,0.00057534,120]
[354616005,1740595929088,-8198.21,0.00057534,120]
[354616007,1740595929097,-1218.92,0.00057534,120]
[354616009,1740595929107,-8691.74,0.00057534,120]
[354616011,1740595929117,-1991.01,0.00057534,120]
[354616013,1740595929130,-820.98,0.00057534,120]
[354616015,1740595929140,-555.9,0.00057534,120]
[354616017,1740595929151,-35881.26,0.00057534,120]
[354616019,1740595929162,-2923.8,0.00057534,120]
[354616021,1740595929172,-949.77,0.00057534,120]
[354616023,1740595929183,-313.10686761,0.00057534,120]
[354616025,1740595929193,-14356.2,0.00057534,120]
[354616027,1740595929204,-689.35,0.00057534,120]
[354616029,1740595929216,-853.36,0.00057534,120]
[354616031,1740595929227,-4865.11,0.00057534,120]
[354616034,1740595929238,-2475.11,0.00057534,120]
[354616036,1740595929248,-2671.56,0.00057534,120]
[354616038,1740595929258,-5089.13,0.00057534,120]
[354616040,1740595929268,-514.99,0.00057534,120]
[354616042,1740595929278,-44424.48,0.00057534,6]
[354616044,1740595929288,-1173.4,0.00057534,120]
[354616046,1740595929298,-520.61,0.00057534,120]
[354616048,1740595929308,-3489.83,0.00057534,120]
[354616050,1740595929318,-1066.43,0.00057534,120]
[354616052,1740595929327,-1957.38,0.00057534,120]
[354616054,1740595929337,-2424.79,0.00057534,120]
[354616056,1740595929347,-21424.0,0.00057534,120]
[354616058,1740595929357,-519.69,0.00057534,120]
[354616060,1740595929366,-526.05,0.00057534,120]
[354616062,1740595929379,-1666.71,0.00057534,120]
[354616064,1740595929388,-3965.85,0.00057534,120]
[354616066,1740595929397,-788.51,0.00057534,120]
[354616068,1740595929407,-560.88971153,0.00057534,120]
[354616070,1740595929416,-1619.69,0.00057534,120]
[354616072,1740595929426,-1722.02,0.00057534,120]
[354616074,1740595929436,-4778.1,0.00057534,120]
[354616076,1740595929446,-2593.09,0.00057534,120]
[354616078,1740595929456,-1690.26,0.00057534,120]
[354616080,1740595929465,-812.11,0.00057534,120]
[354616082,1740595929475,-710.16,0.00057534,120]
[354616084,1740595929485,-1536.25,0.00057534,120]
[354616086,1740595929494,-626.19,0.00057534,120]
[354616088,1740595929504,-541.13,0.00057534,120]
[354616090,1740595929513,-512.95,0.00057534,120]
[354616092,1740595929523,-1851.36,0.00057534,120]
[354616094,1740595929533,-662.82,0.00057534,120]
[354616096,1740595929542,-10264.39,0.00057534,120]
[354616098,1740595929551,-810.19,0.00057534,120]
[354616100,1740595929561,-991.77,0.00057534,120]
[354616102,1740595929571,-3331.35,0.00057534,120]
[354616105,1740595929581,-5881.5,0.00057534,120]
[354616107,1740595929591,-1213.93,0.00057534,120]
[354616109,1740595929600,-2374.13,0.00057534,120]
[354616111,1740595929610,-2465.59,0.00057534,120]
[354616113,1740595929620,-782.08,0.00057534,120]
[354616115,1740595929633,-1294.2,0.00057534,120]
[354616117,1740595929643,-7797.57,0.00057534,120]
[354616119,1740595929653,-1500.0,0.00057534,120]
[354616121,1740595929663,-1000.0,0.00057552,15]
[354616123,1740595929672,-500.0,0.00057552,7]
[354616125,1740595929682,-501.25164145,0.00057552,15]
[354616127,1740595929694,-739.15891132,0.00057552,15]
[354616129,1740595929703,-312.21423528,0.00057552,15]
[354616131,1740595929712,-1000.0,0.00057552,15]
[354616133,1740595929721,-1000.0,0.00057552,15]
[354616135,1740595929731,-500.0,0.00057552,15]
[354616137,1740595929741,-750.0,0.00057788,15]
[354616139,1740595929751,-150.3,0.00057808,120]
[354616141,1740595929760,-295.31011645,0.00057808,120]
[354616145,1740595929785,-828.49,0.00057808,120]
[354616148,1740595929803,-840.04,0.00057808,120]
[354616151,1740595929825,-799.37,0.00057808,120]
[354616154,1740595929846,-526.23,0.00057808,120]
[354616157,1740595929866,-525.22,0.00057808,120]
[354616160,1740595929889,-692.43,0.00057808,120]
[354616163,1740595929909,-566.11,0.00057808,14]
[354616165,1740595929927,-1177.15,0.00057808,120]
[354616169,1740595929946,-628.1694738,0.00057808,120]
[354616172,1740595929969,-1194.96,0.00057808,120]
[354616174,1740595929986,-509.83471148,0.00057808,120]
[354616177,1740595930001,-1734.78,0.00057808,120]
[354616180,1740595930024,-500.0,0.00057808,120]
[354616183,1740595930040,-1448.26,0.00057808,120]
[354616185,1740595930057,-772.59,0.00057808,120]
[354616188,1740595930073,-576.98,0.00057808,120]
[354616191,1740595930090,-599.45,0.00057808,120]
[354616193,1740595930105,-582.65,0.00057808,120]
[354616196,1740595930121,-518.67,0.00057808,120]
[354616199,1740595930139,-524.39,0.00057808,120]
[354616201,1740595930155,-540.34,0.00057808,120]
[354616204,1740595930170,-707.66,0.00057808,120]
[354616206,1740595930187,-879.42,0.00057808,120]
[354616209,1740595930202,-894.65,0.00057808,120]
[354616211,1740595930218,-523.35,0.00057808,120]
[354616214,1740595930235,-213.82240424,0.00057808,120]
[354616217,1740595930250,-630.3,0.00057808,120]
[354616219,1740595930266,-757.41,0.00057808,120]
[354616222,1740595930282,-618.62,0.00057808,120]
[354616224,1740595930298,-1759.91,0.00057808,120]
[354616227,1740595930313,-1105.48,0.00057808,120]
[354616230,1740595930330,-849.13,0.00057808,120]
[354616232,1740595930346,-578.35,0.00057808,120]
[354616235,1740595930362,-827.78,0.00057808,120]
[354616237,1740595930381,-1260.45,0.00057808,120]
[354616240,1740595930397,-624.52,0.00057808,120]
[354616242,1740595930412,-1553.65,0.00057808,120]
[354616245,1740595930428,-515.01,0.00057808,120]
[354616248,1740595930445,-558.26,0.00057808,120]
[354616250,1740595930461,-700.01,0.00057808,120]
[354616253,1740595930478,-527.02,0.00057808,120]
[354616255,1740595930494,-751.69,0.00057808,120]
[354616258,1740595930511,-1613.85,0.00057808,120]
[354616260,1740595930526,-1300.61,0.00057808,120]
[354616262,1740595930541,-667.88,0.00057808,120]
[354616265,1740595930557,-2143.47,0.00057808,120]
[354616267,1740595930573,-872.97,0.00057808,120]
[354616270,1740595930588,-1346.61,0.00057808,120]
[354616272,1740595930603,-2396.98,0.00057808,120]
[354616275,1740595930617,-500.0,0.00057808,120]
[354616277,1740595930633,-640.62,0.00057808,120]
[354616279,1740595930649,-1154.76,0.00057808,120]
[354616282,1740595930665,-500.0,0.00057808,120]
[354616285,1740595930681,-1463.13,0.00057808,120]
[354616287,1740595930696,-2977.1,0.00057808,120]
[354616290,1740595930711,-3444.22,0.00057808,120]
[354616292,1740595930727,-1010.42,0.00057808,120]
[354616295,1740595930741,-522.19,0.00057808,30]
[354616297,1740595930757,-2884.86,0.00057808,120]
[354616300,1740595930772,-989.6,0.00057808,120]
[354616302,1740595930787,-1121.27,0.00057808,120]
[354616305,1740595930803,-1101.44,0.00057808,120]
[354616307,1740595930817,-1764.14,0.00057808,120]
[354616310,1740595930836,-588.25,0.00057808,120]
[354616312,1740595930850,-2377.1,0.00057808,120]
[354616314,1740595930864,-852.55,0.00057808,120]
[354616317,1740595930882,-1100.79,0.00057808,120]
[354616319,1740595930897,-1552.98,0.00057808,120]
[354616322,1740595930912,-543.36,0.00057808,120]
[354616324,1740595930927,-797.98,0.00057808,120]
[354616327,1740595930942,-951.27,0.00057808,120]
[354616329,1740595930956,-888.97,0.00057808,120]
[354616332,1740595930973,-612.57,0.00057808,120]
[354616334,1740595930988,-2699.87,0.00057808,120]
[354616337,1740595931005,-1580.11,0.00057808,120]
[354616339,1740595931020,-265.37752155,0.00057808,120]
[354616342,1740595931036,-1704.51,0.00057808,120]
[354616344,1740595931052,-1099.83,0.00057808,120]
[354616346,1740595931068,-788.27,0.00057808,120]
[354616349,1740595931085,-1902.4,0.00057808,120]
[354616351,1740595931101,-878.04,0.00057808,120]
[354616354,1740595931117,-586.86064603,0.00057808,120]
[354616356,1740595931133,-1372.49,0.00057808,120]
[354616359,1740595931147,-2314.27,0.00057808,120]
[354616361,1740595931162,-1486.63,0.00057808,120]
[354616363,1740595931177,-822.39,0.00057808,120]
[354616380,1740595931342,-901.59,0.00057808,120]
[354616383,1740595931361,-1677.06,0.00057808,120]
[354616385,1740595931371,-1205.34,0.00057808,120]
[354616387,1740595931386,-2294.05,0.00057808,120]
[354616389,1740595931396,-1120.61,0.00057808,120]
[354616391,1740595931407,-604.64,0.00057808,120]
[354616393,1740595931418,-500.0,0.00057808,120]
[354616395,1740595931428,-1074.36,0.00057808,120]
[354616397,1740595931438,-527.7,0.00057808,120]
[354616399,1740595931448,-806.28,0.00057808,120]
[354616401,1740595931458,-1834.97,0.00057808,120]
[354616403,1740595931468,-500.0,0.00057808,120]
[354616405,1740595931478,-841.31,0.00057808,120]
[354616407,1740595931488,-1149.59,0.00057808,120]
[354616409,1740595931497,-504.48,0.00057808,120]
[354616411,1740595931507,-610.98,0.00057808,120]
[354616413,1740595931517,-919.11,0.00057808,120]
[354616415,1740595931526,-1139.22,0.00057808,120]
[354616417,1740595931536,-1427.81,0.00057808,120]
[354616419,1740595931546,-3966.28,0.00057808,120]
[354616421,1740595931555,-1179.25,0.00057808,120]
[354616423,1740595931565,-643.49,0.00057808,120]
[354616424,1740595931575,-9738.58,0.00057808,120]
[354616426,1740595931585,-801.82,0.00057808,120]
[354616428,1740595931594,-911.86,0.00057808,120]
[354616430,1740595931603,-552.77,0.00057808,120]
[354616432,1740595931613,-500.05,0.00057808,120]
[354616434,1740595931622,-587.37,0.00057808,120]
[354616436,1740595931635,-11052.45,0.00057808,120]
[354616438,1740595931644,-517.75,0.00057808,120]
[354616440,1740595931654,-3684.76,0.00057808,120]
[354616442,1740595931664,-3499.84,0.00057808,120]
[354616444,1740595931674,-1015.05,0.00057808,120]
[354616446,1740595931684,-13581.8,0.00057808,120]
[354616448,1740595931693,-15292.47,0.00057808,120]
[354616450,1740595931704,-1570.34,0.00057808,120]
[354616452,1740595931713,-500.0,0.00057808,120]
[354616454,1740595931723,-1020.31,0.00057808,120]
[354616456,1740595931732,-690.39,0.00057808,120]
[354616458,1740595931741,-3105.4,0.00057808,120]
[354616460,1740595931752,-834.44,0.00057808,30]
[354616462,1740595931762,-2309.16,0.00057808,120]
[354616464,1740595931771,-10799.99,0.00057808,120]
[354616466,1740595931781,-850.01,0.00057808,120]
[354616467,1740595931790,-560.38589663,0.00057808,120]
[354616469,1740595931800,-4233.08,0.00057808,120]
[354616471,1740595931809,-4180.32,0.00057808,120]
[354616473,1740595931819,-2800.4,0.00057808,120]
[354616475,1740595931827,-2084.49,0.00057808,120]
[354616477,1740595931837,-2951.73,0.00057808,120]
[354616479,1740595931846,-2431.59,0.00057808,120]
[354616481,1740595931856,-583.3,0.00057808,120]
[354616483,1740595931866,-1918.79,0.00057808,120]
[354616484,1740595931877,-1679.17,0.00057808,120]
[354616486,1740595931887,-2627.04,0.00057808,120]
[354616488,1740595931896,-514.65,0.00057808,120]
[354616490,1740595931907,-1409.36,0.00057808,120]
[354616492,1740595931917,-785.21,0.00057808,120]
[354616494,1740595931927,-834.81,0.00057808,120]
[354616496,1740595931937,-3016.52,0.00057808,120]
[354616498,1740595931946,-2867.38,0.00057808,120]
[354616500,1740595931957,-684.79,0.00057808,120]
[354616502,1740595931968,-928.1,0.00057808,120]
[354616504,1740595931978,-511.43,0.00057808,120]
[354616506,1740595931987,-163172.77,0.00057808,7]
[354616508,1740595931999,-567.25,0.00057808,120]
[354616510,1740595932010,-4605.54,0.00057808,120]
[354616511,1740595932020,-884.36,0.00057808,120]
[354616513,1740595932030,-573.56,0.00057808,120]
[354616515,1740595932040,-1964.79,0.00057808,120]
[354616517,1740595932050,-29115.5,0.00057808,120]
[354616519,1740595932060,-644.01,0.00057808,120]
[354616520,1740595932069,-1853.52,0.00057808,120]
[354616521,1740595932079,-627.73,0.00057808,120]
[354616522,1740595932089,-1150.38,0.00057808,120]
[354616523,1740595932098,-500.0,0.00057808,120]
[354616524,1740595932108,-820.33,0.00057808,120]
[354616525,1740595932118,-1232.27,0.00057808,120]
[354616526,1740595932129,-8198.21,0.00057808,120]
[354616527,1740595932139,-1218.92,0.00057808,120]
[354616528,1740595932148,-8691.74,0.00057808,120]
[354616529,1740595932158,-1991.01,0.00057808,120]
[354616530,1740595932168,-820.98,0.00057808,120]
[354616531,1740595932179,-555.9,0.00057808,120]
[354616532,1740595932190,-35881.26,0.00057808,120]
[354616533,1740595932199,-2923.8,0.00057808,120]
[354616534,1740595932209,-949.77,0.00057808,120]
[354616535,1740595932219,-14356.2,0.00057808,120]
[354616536,1740595932228,-689.35,0.00057808,120]
[354616537,1740595932238,-853.36,0.00057808,120]
[354616538,1740595932247,-4865.11,0.00057808,120]
[354616539,1740595932257,-2475.11,0.00057808,120]
[354616540,1740595932267,-2671.56,0.00057808,120]
[354616541,1740595932277,-5089.13,0.00057808,120]
[354616542,1740595932287,-514.99,0.00057808,120]
[354616544,1740595932298,-44424.48,0.00057808,6]
[354616546,1740595932312,-1173.4,0.00057808,120]
[354616549,1740595932322,-520.61,0.00057808,120]
[354616551,1740595932333,-3489.83,0.00057808,120]
[354616552,1740595932344,-1066.43,0.00057808,120]
[354616554,1740595932354,-1957.38,0.00057808,120]
[354616556,1740595932365,-2424.79,0.00057808,120]
[354616558,1740595932378,-21424.0,0.00057808,120]
[354616561,1740595932393,-519.69,0.00057808,120]
[354616563,1740595932404,-526.05,0.00057808,120]
[354616565,1740595932414,-1666.71,0.00057808,120]
[354616567,1740595932425,-3965.85,0.00057808,120]
[354616569,1740595932435,-788.51,0.00057808,120]
[354616571,1740595932445,-1619.69,0.00057808,120]
[354616573,1740595932455,-1722.02,0.00057808,120]
[354616575,1740595932466,-4778.1,0.00057808,120]
[354616577,1740595932476,-2593.09,0.00057808,120]
[354616579,1740595932486,-1690.26,0.00057808,120]
[354616581,1740595932496,-812.11,0.00057808,120]
[354616583,1740595932506,-710.16,0.00057808,120]
[354616585,1740595932516,-1536.25,0.00057808,120]
[354616587,1740595932525,-626.19,0.00057808,120]
[354616589,1740595932535,-541.13,0.00057808,120]
[354616591,1740595932544,-512.95,0.00057808,120]
[354616593,1740595932554,-1851.36,0.00057808,120]
[354616595,1740595932563,-662.82,0.00057808,120]
[354616597,1740595932573,-10264.39,0.00057808,120]
[354616599,1740595932583,-810.19,0.00057808,120]
[354616601,1740595932592,-991.77,0.00057808,120]
[354616603,1740595932602,-3331.35,0.00057808,120]
[354616605,1740595932612,-5881.5,0.00057808,120]
[354616607,1740595932622,-1213.93,0.00057808,120]
[354616609,1740595932635,-2374.13,0.00057808,120]
[354616611,1740595932644,-2465.59,0.00057808,120]
[354616613,1740595932655,-782.08,0.00057808,120]
[354616615,1740595932666,-1294.2,0.00057808,120]
[354616617,1740595932676,-7797.57,0.00057808,120]
[354616619,1740595932686,-1000.0,0.00057852,15]
[354616621,1740595932696,-1000.0,0.00057852,15]
[354616623,1740595932706,-1000.0,0.00057852,15]
[354616625,1740595932716,-1000.0,0.00057852,14]
[354616627,1740595932726,-1000.0,0.00057852,7]
[354616629,1740595932735,-988.57071479,0.00057852,15]
[354616631,1740595932745,-1000.0,0.00057852,15]
[354616633,1740595932754,-500.39504558,0.00057852,15]
[354616635,1740595932764,-1000.0,0.00057852,15]
[354616637,1740595932774,-1000.0,0.00057852,15]
[354616639,1740595932784,-928.76556291,0.00057852,15]
[354616641,1740595932793,-1000.0,0.00057852,15]
[354616643,1740595932802,-1000.0,0.00057852,14]
[354616645,1740595932812,-1000.0,0.00057852,15]
[354616647,1740595932822,-258.67328275,0.00057852,15]
[354616649,1740595932831,-384.42858924,0.00057852,15]
[354616651,1740595932840,-1000.0,0.00057852,15]
[354616653,1740595932850,-1000.0,0.00057852,14]
[354616655,1740595932859,-1000.0,0.00057852,15]
[354616657,1740595932869,-1000.0,0.00057852,14]
[354616659,1740595932881,-1000.0,0.00057852,15]
[354616661,1740595932891,-1000.0,0.00057852,15]
[354616663,1740595932900,-1989.0,0.00057898,120]
[354616665,1740595932910,-1989.0,0.00057898,120]
[354616667,1740595932919,-1989.0,0.00057898,120]
[354616669,1740595932928,-1989.0,0.00057898,120]
[354616671,1740595932938,-10000.0,0.00058,58]
[354616673,1740595932947,-245.72,0.00058,30]
[354616675,1740595932960,-199.4,0.00058082,120]
[354616677,1740595932970,-828.49,0.00058082,120]
[354616679,1740595932980,-840.04,0.00058082,120]
[354616681,1740595932989,-799.37,0.00058082,120]
[354616683,1740595933003,-526.23,0.00058082,120]
[354616685,1740595933014,-525.22,0.00058082,120]
[354616687,1740595933024,-692.43,0.00058082,120]
[354616689,1740595933034,-566.11,0.00058082,14]
[354616691,1740595933044,-1177.15,0.00058082,120]
[354616693,1740595933054,-1194.96,0.00058082,120]
[354616696,1740595933064,-1734.78,0.00058082,120]
[354616698,1740595933075,-500.0,0.00058082,120]
[354616699,1740595933086,-1448.26,0.00058082,120]
[354616701,1740595933096,-772.59,0.00058082,120]
[354616703,1740595933105,-576.98,0.00058082,120]
[354616705,1740595933115,-599.45,0.00058082,120]
[354616708,1740595933128,-582.65,0.00058082,120]
[354616710,1740595933141,-518.67,0.00058082,120]
[354616712,1740595933151,-524.39,0.00058082,120]
[354616713,1740595933161,-540.34,0.00058082,120]
[354616715,1740595933172,-707.66,0.00058082,120]
[354616718,1740595933182,-879.42,0.00058082,120]
[354616720,1740595933193,-894.65,0.00058082,120]
[354616722,1740595933204,-523.35,0.00058082,120]
[354616724,1740595933214,-630.3,0.00058082,120]
[354616726,1740595933225,-757.41,0.00058082,120]
[354616728,1740595933235,-618.62,0.00058082,120]
[354616730,1740595933246,-1759.91,0.00058082,120]
[354616732,1740595933256,-1105.48,0.00058082,120]
[354616734,1740595933267,-849.13,0.00058082,120]
[354616736,1740595933278,-578.35,0.00058082,120]
[354616738,1740595933288,-827.78,0.00058082,120]
[354616740,1740595933299,-1260.45,0.00058082,120]
[354616742,1740595933308,-624.52,0.00058082,120]
[354616744,1740595933319,-1553.65,0.00058082,120]
[354616746,1740595933329,-515.01,0.00058082,120]
[354616748,1740595933339,-558.26,0.00058082,120]
[354616750,1740595933349,-700.01,0.00058082,120]
[354616752,1740595933358,-527.02,0.00058082,120]
[354616754,1740595933368,-751.69,0.00058082,120]
[354616756,1740595933383,-1613.85,0.00058082,120]
[354616758,1740595933393,-1300.61,0.00058082,120]
[354616760,1740595933403,-667.88,0.00058082,120]
[354616762,1740595933414,-2143.47,0.00058082,120]
[354616764,1740595933424,-872.97,0.00058082,120]
[354616766,1740595933434,-1346.61,0.00058082,120]
[354616768,1740595933444,-2396.98,0.00058082,120]
[354616770,1740595933454,-461.79511689,0.00058082,120]
[354616785,1740595933589,-640.62,0.00058082,120]
[354616787,1740595933601,-1154.76,0.00058082,120]
[354616789,1740595933612,-412.76293352,0.00058082,120]
[354616791,1740595933621,-1463.13,0.00058082,120]
[354616793,1740595933634,-2977.1,0.00058082,120]
[354616795,1740595933645,-3444.22,0.00058082,120]
[354616797,1740595933654,-1010.42,0.00058082,120]
[354616799,1740595933665,-522.19,0.00058082,30]
[354616801,1740595933675,-2884.86,0.00058082,120]
[354616803,1740595933685,-989.6,0.00058082,120]
[354616805,1740595933695,-1121.27,0.00058082,120]
[354616807,1740595933704,-1101.44,0.00058082,120]
[354616809,1740595933714,-1764.14,0.00058082,120]
[354616811,1740595933723,-588.25,0.00058082,120]
[354616814,1740595933734,-2377.1,0.00058082,120]
[354616815,1740595933743,-852.55,0.00058082,120]
[354616818,1740595933753,-1100.79,0.00058082,120]
[354616819,1740595933763,-1552.98,0.00058082,120]
[354616822,1740595933773,-543.36,0.00058082,120]
[354616823,1740595933783,-797.98,0.00058082,120]
[354616826,1740595933792,-951.27,0.00058082,120]
[354616828,1740595933802,-888.97,0.00058082,120]
[354616830,1740595933812,-612.57,0.00058082,120]
[354616832,1740595933821,-2699.87,0.00058082,120]
[354616834,1740595933830,-1580.11,0.00058082,120]
[354616836,1740595933840,-1704.51,0.00058082,120]
[354616838,1740595933850,-1099.83,0.00058082,120]
[354616840,1740595933859,-788.27,0.00058082,120]
[354616842,1740595933870,-1902.4,0.00058082,120]
[354616844,1740595933883,-878.04,0.00058082,120]
[354616846,1740595933893,-1372.49,0.00058082,120]
[354616848,1740595933903,-2314.27,0.00058082,120]
[354616850,1740595933913,-1486.63,0.00058082,120]
[354616852,1740595933922,-822.39,0.00058082,120]
[354616853,1740595933932,-901.59,0.00058082,120]
[354616855,1740595933942,-1677.06,0.00058082,120]
[354616858,1740595933953,-1205.34,0.00058082,120]
[354616859,1740595933964,-2294.05,0.00058082,120]
[354616861,1740595933974,-1120.61,0.00058082,120]
[354616863,1740595933984,-604.64,0.00058082,120]
[354616865,1740595933996,-302.42779566,0.00058082,120]
[354616868,1740595934009,-1074.36,0.00058082,120]
[354616870,1740595934020,-527.7,0.00058082,120]
[354616872,1740595934030,-806.28,0.00058082,120]
[354616874,1740595934040,-1834.97,0.00058082,120]
[354616876,1740595934050,-500.0,0.00058082,120]
[354616878,1740595934060,-841.31,0.00058082,120]
[354616880,1740595934071,-1149.59,0.00058082,120]
[354616882,1740595934082,-504.48,0.00058082,120]
[354616884,1740595934093,-610.98,0.00058082,120]
[354616886,1740595934103,-919.11,0.00058082,120]
[354616888,1740595934113,-1139.22,0.00058082,120]
[354616890,1740595934123,-1427.81,0.00058082,120]
[354616892,1740595934136,-3966.28,0.00058082,120]
[354616894,1740595934146,-1179.25,0.00058082,120]
[354616896,1740595934156,-643.49,0.00058082,120]
[354616898,1740595934166,-9738.58,0.00058082,120]
[354616900,1740595934176,-801.82,0.00058082,120]
[354616902,1740595934186,-911.86,0.00058082,120]
[354616904,1740595934196,-552.77,0.00058082,120]
[354616906,1740595934205,-500.05,0.00058082,120]
[354616908,1740595934214,-587.37,0.00058082,120]
[354616910,1740595934225,-11052.45,0.00058082,120]
[354616912,1740595934234,-517.75,0.00058082,120]
[354616914,1740595934244,-3684.76,0.00058082,120]
[354616916,1740595934253,-3499.84,0.00058082,120]
[354616918,1740595934262,-1015.05,0.00058082,120]
[354616920,1740595934272,-13581.8,0.00058082,120]
[354616922,1740595934282,-15292.47,0.00058082,120]
[354616924,1740595934292,-1570.34,0.00058082,120]
[354616926,1740595934302,-500.0,0.00058082,120]